Workbook

Sheet Master
C1: EMPLOYEE DETAIL | T1: GPF | U1: YES
T2: NPS | U2: NO
A3: OFFICE NAME :- | C3: Government Senior Secondry School Inderwara , Pali
A4: Old 7th Pay DA % :- | C4: 12 | E4: Old 7th Pay HRA % :- | H4: 8
A5: New 7th Pay DA % :- | C5: 17 | E5: New 7th Pay HRA % :- | H5: 8
A7: S.R. NO. | B7: EMPLOYEE NAME | C7: POST | D7: How Many Months make Arrear | E7: 7th Pay Basic | F7: GPF / NPS | G7: INCOME TAX | H7: Surrender Arrear YES / NO
A8: 1 | B8: MISHRI LAL | C8: PRINCIPAL | D8: 8 | E8: 71400 | F8: GPF | G8: 20 | N8: ije~ iwT; xq:nso oklqnso th egkjkt dks ueu
A9: 2 | B9: KALYAN SINGH | C9: LECTURER | D9: 8 | E9: 47000 | F9: NPS
A10: 3 | B10: BHAGWAN SINGH | C10: LECTURER | D10: 8 | E10: 71300 | F10: NPS | G10: 20
A11: 4 | B11: MANGILAL RANGI | C11: Sr. Teacher | D11: 8 | E11: 71300 | F11: GPF | G11: 20
A12: 5 | B12: HEERA LAL JAT | C12: Sr. Teacher | D12: 8 | E12: 49300 | F12: GPF | G12: 20 | H12: YES
A13: 6 | B13: MAHENDRA PATEL | C13: Sr. Teacher | D13: 8 | E13: 41300 | F13: NPS | G13: 20
A14: 7 | B14: BHALA RAM MOBARSA | C14: TEACHER L-1 | D14: 8 | E14: 67000 | F14: GPF | G14: 20
A15: 8 | B15: ARJUN SINGH | C15: TEACHER L-1 | D15: 8 | E15: 46500 | F15: GPF
A16: 9 | B16: SURESH KUMAR ADARA | C16: TEACHER L-2 | D16: 8 | E16: 50800 | F16: NPS | G16: 20
A17: 10 | B17: LALIT KUMAR | C17: TEACHER L-1 | D17: 8 | E17: 50800 | F17: GPF | G17: 20
A18: 11 | B18: MANDIP SINGH BHULLAR | C18: P.T.I. IIIrd | D18: 8 | E18: 35800 | F18: NPS
A19: 12 | B19: AJAY KUMAR | C19: PEON | D19: 8 | E19: 30500 | F19: GPF
A20: 13 | B20: PEERARAM | C20: Sr. Teacher | D20: 8 | E20: 67200 | F20: GPF | G20: 20
A21: 14 | B21: SOHAN LAL | C21: TEACHER L-2 | D21: 8 | E21: 38000 | F21: NPS
A22: 15 | B22: SITARAM | C22: TEACHER L-1 | D22: 5 | E22: 36900 | F22: NPS
A23: 16
A24: 17
A25: 18
A26: 19
A27: 20
A28: 21
A29: 22
A30: 23
A31: 24
A32: 25
A33: 26
A34: 27
A35: 28
A36: 29
A37: 30
A38: 31
A39: 32
A40: 33
A41: 34
A42: 35
A43: 36
A44: 37
A45: 38
A46: 39
A47: 40
A48: 41
A49: 42
A50: 43
A51: 44
A52: 45
A53: 46
A54: 47
A55: 48
A56: 49
A57: 50
A58: 51
A59: 52
A60: 53
A61: 54
A62: 55
A63: 56
A64: 57
A65: 58
A66: 59
A67: 60
A68: 61
A69: 62
A70: 63
A71: 64
A72: 65
A73: 66
A74: 67
A75: 68
A76: 69
A77: 70
A78: 71
A79: 72
A80: 73
A81: 74
A82: 75
A83: 76
A84: 77
A85: 78
A86: 79
A87: 80
A88: 81
A89: 82
A90: 83
A91: 84
A92: 85
A93: 86
A94: 87
A95: 88
A96: 89
A97: 90
A98: 91
A99: 92
A100: 93
A101: 94
A102: 95
A103: 96
A104: 97
A105: 98
A106: 99
A107: 100
A108: 101

Sheet Arrear
A1: DA (17%) Drawn Statement | X1: =IF(ISNA(VLOOKUP($F$4,Master!A$8:N$127,4,FALSE)),"",VLOOKUP($F$4,Master!A$8:AH$127,4,FALSE)) -> 8 | Y1: =IF(ISNA(VLOOKUP($F$4,Master!A$8:N$127,6,FALSE)),"",VLOOKUP($F$4,Master!A$8:AH$127,6,FALSE)) -> GPF | Z1: NPS | AA1: GPF | AB1: =IF(ISNA(VLOOKUP($F$4,Master!A$8:N$127,7,FALSE)),"",VLOOKUP($F$4,Master!A$8:AH$127,7,FALSE)) -> 20
A2: =IF(AND(Master!C3=""),"",CONCATENATE("Office Of ",Master!C3)) -> Office Of Government Senior Secondry School Inderwara , Pali | Y2: =IF(ISNA(VLOOKUP($F$4,Master!A$8:N$127,8,FALSE)),"",VLOOKUP($F$4,Master!A$8:AH$127,8,FALSE)) -> YES | Z2: YES
E3: Name of Employee :- | J3: =IF(ISNA(VLOOKUP($F$4,Master!A$8:N$127,2,FALSE)),"",VLOOKUP($F$4,Master!A$8:AH$127,2,FALSE)) -> HEERA LAL JAT | O3: POST:- | Q3: =IF(ISNA(VLOOKUP($F$4,Master!A$8:N$127,3,FALSE)),"",VLOOKUP($F$4,Master!A$8:AH$127,3,FALSE)) -> Sr. Teacher
E4: Sr. No. - | F4: 5
A5: Serial No. | B5: Month & Year | C5: Pay Due | G5: Pay Drawn | K5: Pay Difference | O5: Deducation | R5: Total of Dedu ction Col. 15 to 17 | S5: To be paid deducting Col. 14 form 18 | T5: Treasury Bill@ Voucher No.& Date
C6: Basic | D6: Dearness Allowance | E6: H.R.A. | F6: Total Col. 3 to 5 | G6: Basic | H6: Dearness Allowance | I6: H.R.A. | J6: Total Col. 7 to 9 | K6: Basic Pay | L6: Dearness Allowance | M6: H.R.A. | N6: Total Col. 11 to 13 | O6: NPS/GPF | Q6: Income Tax / TDS
O7: NPS | P7: GPF
A8: 1 | B8: 2 | C8: 3 | D8: 4 | E8: 5 | F8: 6 | G8: 7 | H8: 8 | I8: 9 | J8: 10 | K8: 11 | L8: 12 | M8: 13 | N8: 14 | O8: 15 | P8: 16 | Q8: 17 | R8: 18 | S8: 19 | T8: 20
A9: 1 | B9: 2019-07-01 | C9: =IF(ISNA(VLOOKUP($F$4,Master!A$8:N$127,5,FALSE)),"",VLOOKUP($F$4,Master!A$8:AH$127,5,FALSE)) -> 49300 | D9: =IF(AND(C9=""),"",IF(AND($F$4=""),"",ROUND(C9*Master!C$5%,0))) -> 8381 | E9: =IF(AND(C9=""),"",IF(AND($F$4=""),"",ROUND(C9*Master!H$5%,0))) -> 3944 | F9: =IF(AND(C9=""),"",SUM(C9:E9)) -> 61625 | G9: =IF(ISNA(VLOOKUP($F$4,Master!A$8:N$127,5,FALSE)),"",VLOOKUP($F$4,Master!A$8:AH$127,5,FALSE)) -> 49300 | H9: =IF(AND(G9=""),"",IF(AND($F$4=""),"",ROUND(G9*Master!C$4%,0))) -> 5916 | I9: =IF(AND(G9=""),"",IF(AND($F$4=""),"",ROUND(G9*Master!H$4%,0))) -> 3944 | J9: =IF(AND(C9=""),"",SUM(G9:I9)) -> 59160 | K9: =IF(AND(C9=""),"",IF(AND(G9=""),"",C9-G9)) -> 0 | L9: 2465 | M9: 0 | N9: 2465 | O9: =IF(AND(C9=""),"",IF(AND(Y$1=Z$1),ROUND((N9)*10%,0),"0")) -> 0 | P9: =IF(AND(C9=""),"",IF(AND(Y$1=AA$1),N9-Q9,"0")) -> 1972 | Q9: =IF(AND($F$4=""),"",IF(AND(N9=""),"",ROUND(N9*AB$1%,0))) -> 493 | R9: =IF(AND(F$4=""),"",IF(AND(C9=""),"",IF(AND(O9=""),"",IF(AND(P9=""),"",O9+P9+Q9)))) -> 2465 | S9: =IF(AND(N9=""),"",IF(AND(R9=""),"",N9-R9)) -> 0 | Y9: 2019-07-01
A10: 2 | B10: =IF(AND($F$4=""),"",IF(AND(Arrear!X$1<2),"",Y10)) -> 2019-08-01 | C10: =IF(AND($F$4=""),"",IF(AND(Arrear!X$1<2),"",Arrear!C9)) -> 49300 | D10: =IF(AND(C10=""),"",IF(AND($F$4=""),"",ROUND(C10*Master!C$5%,0))) -> 8381 | E10: =IF(AND(C10=""),"",IF(AND($F$4=""),"",ROUND(C10*Master!H$5%,0))) -> 3944 | F10: 61625 | G10: =IF(AND($F$4=""),"",IF(AND(Arrear!X$1<2),"",Arrear!C10)) -> 49300 | H10: =IF(AND(G10=""),"",IF(AND($F$4=""),"",ROUND(G10*Master!C$4%,0))) -> 5916 | I10: =IF(AND(G10=""),"",IF(AND($F$4=""),"",ROUND(G10*Master!H$4%,0))) -> 3944 | J10: 59160 | K10: 0 | L10: 2465 | M10: 0 | N10: 2465 | O10: =IF(AND(C10=""),"",IF(AND(Y$1=Z$1),ROUND((N10)*10%,0),"0")) -> 0 | P10: =IF(AND(C10=""),"",IF(AND(Y$1=AA$1),N10-Q10,"0")) -> 1972 | Q10: =IF(AND($F$4=""),"",IF(AND(N10=""),"",ROUND(N10*AB$1%,0))) -> 493 | R10: =IF(AND(F$4=""),"",IF(AND(C10=""),"",IF(AND(O10=""),"",IF(AND(P10=""),"",O10+P10+Q10)))) -> 2465 | S10: =IF(AND(N10=""),"",IF(AND(R10=""),"",N10-R10)) -> 0 | Y10: 2019-08-01
A11: 3 | B11: =IF(AND($F$4=""),"",IF(AND(Arrear!X$1<3),"",Y11)) -> 2019-09-01 | C11: =IF(AND($F$4=""),"",IF(AND(Arrear!X$1<3),"",Arrear!C10)) -> 49300 | D11: =IF(AND(C11=""),"",IF(AND($F$4=""),"",ROUND(C11*Master!C$5%,0))) -> 8381 | E11: =IF(AND(C11=""),"",IF(AND($F$4=""),"",ROUND(C11*Master!H$5%,0))) -> 3944 | F11: 61625 | G11: =IF(AND($F$4=""),"",IF(AND(Arrear!X$1<3),"",Arrear!C11)) -> 49300 | H11: =IF(AND(G11=""),"",IF(AND($F$4=""),"",ROUND(G11*Master!C$4%,0))) -> 5916 | I11: =IF(AND(G11=""),"",IF(AND($F$4=""),"",ROUND(G11*Master!H$4%,0))) -> 3944 | J11: 59160 | K11: 0 | L11: 2465 | M11: 0 | N11: 2465 | O11: 0 | P11: 1972 | Q11: 493 | R11: 2465 | S11: 0 | Y11: 2019-09-01
A12: 4 | B12: =IF(AND($F$4=""),"",IF(AND(Arrear!X$1<4),"",Y12)) -> 2019-10-01 | C12: =IF(AND($F$4=""),"",IF(AND(Arrear!X$1<4),"",Arrear!C11)) -> 49300 | D12: =IF(AND(C12=""),"",IF(AND($F$4=""),"",ROUND(C12*Master!C$5%,0))) -> 8381 | E12: =IF(AND(C12=""),"",IF(AND($F$4=""),"",ROUND(C12*Master!H$5%,0))) -> 3944 | F12: 61625 | G12: =IF(AND($F$4=""),"",IF(AND(Arrear!X$1<4),"",Arrear!C12)) -> 49300 | H12: =IF(AND(G12=""),"",IF(AND($F$4=""),"",ROUND(G12*Master!C$4%,0))) -> 5916 | I12: =IF(AND(G12=""),"",IF(AND($F$4=""),"",ROUND(G12*Master!H$4%,0))) -> 3944 | J12: 59160 | K12: 0 | L12: 2465 | M12: 0 | N12: 2465 | O12: 0 | P12: 1972 | Q12: 493 | R12: 2465 | S12: 0 | Y12: 2019-10-01
A13: 5 | B13: =IF(AND($F$4=""),"",IF(AND(Arrear!X$1<5),"",Y13)) -> 2019-11-01 | C13: =IF(AND($F$4=""),"",IF(AND(Arrear!X$1<5),"",Arrear!C12)) -> 49300 | D13: =IF(AND(C13=""),"",IF(AND($F$4=""),"",ROUND(C13*Master!C$5%,0))) -> 8381 | E13: =IF(AND(C13=""),"",IF(AND($F$4=""),"",ROUND(C13*Master!H$5%,0))) -> 3944 | F13: 61625 | G13: =IF(AND($F$4=""),"",IF(AND(Arrear!X$1<5),"",Arrear!C13)) -> 49300 | H13: =IF(AND(G13=""),"",IF(AND($F$4=""),"",ROUND(G13*Master!C$4%,0))) -> 5916 | I13: =IF(AND(G13=""),"",IF(AND($F$4=""),"",ROUND(G13*Master!H$4%,0))) -> 3944 | J13: 59160 | K13: 0 | L13: 2465 | M13: 0 | N13: 2465 | O13: 0 | P13: 1972 | Q13: 493 | R13: 2465 | S13: 0 | Y13: 2019-11-01
A14: 6 | B14: =IF(AND($F$4=""),"",IF(AND(Arrear!X$1<6),"",Y14)) -> 2019-12-01 | C14: =IF(AND($F$4=""),"",IF(AND(Arrear!X$1<6),"",Arrear!C13)) -> 49300 | D14: =IF(AND(C14=""),"",IF(AND($F$4=""),"",ROUND(C14*Master!C$5%,0))) -> 8381 | E14: =IF(AND(C14=""),"",IF(AND($F$4=""),"",ROUND(C14*Master!H$5%,0))) -> 3944 | F14: 61625 | G14: =IF(AND($F$4=""),"",IF(AND(Arrear!X$1<6),"",Arrear!C14)) -> 49300 | H14: =IF(AND(G14=""),"",IF(AND($F$4=""),"",ROUND(G14*Master!C$4%,0))) -> 5916 | I14: =IF(AND(G14=""),"",IF(AND($F$4=""),"",ROUND(G14*Master!H$4%,0))) -> 3944 | J14: 59160 | K14: 0 | L14: 2465 | M14: 0 | N14: 2465 | O14: 0 | P14: 1972 | Q14: 493 | R14: 2465 | S14: 0 | Y14: 2019-12-01
A15: 7 | B15: =IF(AND($F$4=""),"",IF(AND(Arrear!X$1<7),"",Y15)) -> 2020-01-01 | C15: =IF(AND($F$4=""),"",IF(AND(Arrear!X$1<7),"",Arrear!C14)) -> 49300 | D15: =IF(AND(C15=""),"",IF(AND($F$4=""),"",ROUND(C15*Master!C$5%,0))) -> 8381 | E15: =IF(AND(C15=""),"",IF(AND($F$4=""),"",ROUND(C15*Master!H$5%,0))) -> 3944 | F15: =IF(AND(C15=""),"",SUM(C15:E15)) -> 61625 | G15: =IF(AND($F$4=""),"",IF(AND(Arrear!X$1<7),"",Arrear!C15)) -> 49300 | H15: =IF(AND(G15=""),"",IF(AND($F$4=""),"",ROUND(G15*Master!C$4%,0))) -> 5916 | I15: =IF(AND(G15=""),"",IF(AND($F$4=""),"",ROUND(G15*Master!H$4%,0))) -> 3944 | J15: =IF(AND(C15=""),"",SUM(G15:I15)) -> 59160 | K15: =IF(AND(C15=""),"",IF(AND(G15=""),"",C15-G15)) -> 0 | L15: =IF(AND(D15=""),"",IF(AND(H15=""),"",D15-H15)) -> 2465 | M15: =IF(AND(E15=""),"",IF(AND(I15=""),"",E15-I15)) -> 0 | N15: =IF(AND(F15=""),"",IF(AND(J15=""),"",F15-J15)) -> 2465 | O15: =IF(AND(C15=""),"",IF(AND(Y$1=Z$1),ROUND((N15)*10%,0),"0")) -> 0 | P15: 1972 | Q15: =IF(AND($F$4=""),"",IF(AND(N15=""),"",ROUND(N15*AB$1%,0))) -> 493 | R15: =IF(AND(F$4=""),"",IF(AND(C15=""),"",IF(AND(O15=""),"",IF(AND(P15=""),"",O15+P15+Q15)))) -> 2465 | S15: =IF(AND(N15=""),"",IF(AND(R15=""),"",N15-R15)) -> 0 | Y15: 2020-01-01
A16: 8 | B16: =IF(AND($F$4=""),"",IF(AND(Arrear!X$1<8),"",Y16)) -> 2020-02-01 | C16: =IF(AND($F$4=""),"",IF(AND(Arrear!X$1<8),"",Arrear!C15)) -> 49300 | D16: =IF(AND(C16=""),"",IF(AND($F$4=""),"",ROUND(C16*Master!C$5%,0))) -> 8381 | E16: =IF(AND(C16=""),"",IF(AND($F$4=""),"",ROUND(C16*Master!H$5%,0))) -> 3944 | F16: 61625 | G16: =IF(AND($F$4=""),"",IF(AND(Arrear!X$1<8),"",Arrear!C16)) -> 49300 | H16: =IF(AND(G16=""),"",IF(AND($F$4=""),"",ROUND(G16*Master!C$4%,0))) -> 5916 | I16: =IF(AND(G16=""),"",IF(AND($F$4=""),"",ROUND(G16*Master!H$4%,0))) -> 3944 | J16: 59160 | K16: 0 | L16: 2465 | M16: 0 | N16: 2465 | O16: 0 | P16: 1972 | Q16: 493 | R16: 2465 | S16: 0 | Y16: 2020-02-01
A17: 9 | B17: =IF(AND($F$4=""),"",IF(AND(Arrear!X$1<9),"",Y17)) ->  | C17: =IF(AND($F$4=""),"",IF(AND(Arrear!X$1<9),"",Arrear!C16)) ->  | D17: =IF(AND(C17=""),"",IF(AND($F$4=""),"",ROUND(C17*Master!C$5%,0))) ->  | E17: =IF(AND(C17=""),"",IF(AND($F$4=""),"",ROUND(C17*Master!H$5%,0))) ->  | G17: =IF(AND($F$4=""),"",IF(AND(Arrear!X$1<9),"",Arrear!C17)) ->  | H17: =IF(AND(G17=""),"",IF(AND($F$4=""),"",ROUND(G17*Master!C$4%,0))) ->  | I17: =IF(AND(G17=""),"",IF(AND($F$4=""),"",ROUND(G17*Master!H$4%,0))) ->  | Y17: 2020-03-01
A18: 10 | B18: Surrender Arrear | C18: =IF(AND($F$4=""),"",IF(AND(Y$2=Z$2),VLOOKUP($F$4,Master!A$8:AH$127,5,FALSE)/2,"")) -> 24650 | D18: =IF(AND(C18=""),"",IF(AND($F$4=""),"",ROUND(C18*Master!C$5%,0))) -> 4191 | E18: =IF(AND(C18=""),"",IF(AND($F$4=""),"",ROUND(C18*Master!H$5%,0))) -> 1972 | F18: 30813 | G18: =IF(AND($F$4=""),"",IF(AND(Y$2=Z$2),VLOOKUP($F$4,Master!A$8:AH$127,5,FALSE)/2,"")) -> 24650 | H18: =IF(AND(G18=""),"",IF(AND($F$4=""),"",ROUND(G18*Master!C$4%,0))) -> 2958 | I18: =IF(AND(G18=""),"",IF(AND($F$4=""),"",ROUND(G18*Master!H$4%,0))) -> 1972 | J18: 29580 | K18: 0 | L18: 1233 | M18: 0 | N18: 1233 | O18: 0 | P18: 986 | Q18: 247 | R18: 1233 | S18: 0 | Y18: 2020-04-01
A19: TOTAL | C19: =IF(AND($F$4=""),"",SUM(C9:C18)) -> 419050 | D19: 71239 | E19: 33524 | F19: 523813 | G19: 419050 | H19: 50286 | I19: 33524 | J19: 502860 | K19: 0 | L19: 20953 | M19: 0 | N19: 20953 | O19: 0 | P19: 16762 | Q19: 4191 | R19: 20953 | S19: 0
E20: Cash Amount in Words : | J20: =IF(AND(F4=""),"",IF(AND(S19=0),"ZERO ONLY","( Rs. "&LOOKUP(IF(INT(RIGHT(S19,7)/100000)>19,INT(RIGHT(S19,7)/1000000),IF(INT(RIGHT(S19,7)/100000)>=10,INT(RIGHT(S19,7)/100000),0)),{0,1,2,3,4,5,6,7,8,9,10,11,12,13,14,15,16,17,18,19},{""," TEN "," TWENTY "," THIRTY "," FOURTY "," FIFTY "," SIXTY "," SEVENTY "," EIGHTY "," NINETY "," TEN "," ELEVEN "," TWELVE "," THIRTEEN "," FOURTEEN "," FIFTEEN "," SIXTEEN"," SEVENTEEN"," EIGHTEEN "," NINETEEN "})&IF((IF(INT(RIGHT(S19,7)/100000)>19,INT(RIGHT(S19,7)/1000000),IF(INT(RIGHT(S19,7)/100000)>=10,INT(RIGHT(S19,7)/100000),0))+IF(INT(RIGHT(S19,7)/100000)>19,INT(RIGHT(S19,6)/100000),IF(INT(RIGHT(S19,7)/100000)>10,0,INT(RIGHT(S19,6)/100000))))>0,LOOKUP(IF(INT(RIGHT(S19,7)/100000)>19,INT(RIGHT(S19,6)/100000),IF(INT(RIGHT(S19,7)/100000)>10,0,INT(RIGHT(S19,6)/100000))),{0,1,2,3,4,5,6,7,8,9,10,11,12,13,14,15,16,17,18,19},{""," ONE "," TWO "," THREE "," FOUR "," FIVE "," SIX "," SEVEN "," EIGHT "," NINE "," TEN "," ELEVEN "," TWELVE "," THIRTEEN "," FOURTEEN "," FIFTEEN "," SIXTEEN"," SEVENTEEN"," EIGHTEEN "," NINETEEN "})&" Lac. "," ")&LOOKUP(IF(INT(RIGHT(S19,5)/1000)>19,INT(RIGHT(S19,5)/10000),IF(INT(RIGHT(S19,5)/1000)>=10,INT(RIGHT(S19,5)/1000),0)),{0,1,2,3,4,5,6,7,8,9,10,11,12,13,14,15,16,17,18,19},{""," TEN "," TWENTY "," THIRTY "," FOURTY "," FIFTY "," SIXTY "," SEVENTY "," EIGHTY "," NINETY "," TEN "," ELEVEN "," TWELVE "," THIRTEEN "," FOURTEEN "," FIFTEEN "," SIXTEEN"," SEVENTEEN"," EIGHTEEN "," NINETEEN "})&IF((IF(INT(RIGHT(S19,5)/1000)>19,INT(RIGHT(S19,4)/1000),IF(INT(RIGHT(S19,5)/1000)>10,0,INT(RIGHT(S19,4)/1000)))+IF(INT(RIGHT(S19,5)/1000)>19,INT(RIGHT(S19,5)/10000),IF(INT(RIGHT(S19,5)/1000)>=10,INT(RIGHT(S19,5)/1000),0)))>0,LOOKUP(IF(INT(RIGHT(S19,5)/1000)>19,INT(RIGHT(S19,4)/1000),IF(INT(RIGHT(S19,5)/1000)>10,0,INT(RIGHT(S19,4)/1000))),{0,1,2,3,4,5,6,7,8,9,10,11,12,13,14,15,16,17,18,19},{""," ONE "," TWO "," THREE "," FOUR "," FIVE "," SIX "," SEVEN "," EIGHT "," NINE "," TEN "," ELEVEN "," TWELVE "," THIRTEEN "," FOURTEEN "," FIFTEEN "," SIXTEEN"," SEVENTEEN"," EIGHTEEN "," NINETEEN "})&" THOUSAND "," ")&IF((INT((RIGHT(S19,3))/100))>0,LOOKUP(INT((RIGHT(S19,3))/100),{0,1,2,3,4,5,6,7,8,9,10,11,12,13,14,15,16,17,18,19},{""," ONE "," TWO "," THREE "," FOUR "," FIVE "," SIX "," SEVEN "," EIGHT "," NINE "," TEN "," ELEVEN "," TWELVE "," THIRTEEN "," FOURTEEN "," FIFTEEN "," SIXTEEN"," SEVENTEEN"," EIGHTEEN "," NINETEEN "})&" HUNDRED "," ")&LOOKUP(IF(INT(RIGHT(S19,2))>19,INT(RIGHT(S19,2)/10),IF(INT(RIGHT(S19,2))>=10,INT(RIGHT(S19,2)),0)),{0,1,2,3,4,5,6,7,8,9,10,11,12,13,14,15,16,17,18,19},{""," TEN "," TWENTY "," THIRTY "," FOURTY "," FIFTY "," SIXTY "," SEVENTY "," EIGHTY "," NINETY "," TEN "," ELEVEN "," TWELVE "," THIRTEEN "," FOURTEEN "," FIFTEEN "," SIXTEEN"," SEVENTEEN"," EIGHTEEN "," NINETEEN "})&LOOKUP(IF(INT(RIGHT(S19,2))<10,INT(RIGHT(S19,1)),IF(INT(RIGHT(S19,2))<20,0,INT(RIGHT(S19,1)))),{0,1,2,3,4,5,6,7,8,9,10,11,12,13,14,15,16,17,18,19},{""," ONE "," TWO "," THREE "," FOUR "," FIVE "," SIX "," SEVEN "," EIGHT "," NINE "," TEN "," ELEVEN "," TWELVE "," THIRTEEN "," FOURTEEN "," FIFTEEN "," SIXTEEN"," SEVENTEEN"," EIGHTEEN "," NINETEEN "})&" Only)")) -> ZERO ONLY
D21: =IF(AND(P19=""),"",IF(AND(P19=0),"","( Rs. "&LOOKUP(IF(INT(RIGHT(P19,7)/100000)>19,INT(RIGHT(P19,7)/1000000),IF(INT(RIGHT(P19,7)/100000)>=10,INT(RIGHT(P19,7)/100000),0)),{0,1,2,3,4,5,6,7,8,9,10,11,12,13,14,15,16,17,18,19},{""," TEN "," TWENTY "," THIRTY "," FOURTY "," FIFTY "," SIXTY "," SEVENTY "," EIGHTY "," NINETY "," TEN "," ELEVEN "," TWELVE "," THIRTEEN "," FOURTEEN "," FIFTEEN "," SIXTEEN"," SEVENTEEN"," EIGHTEEN "," NINETEEN "})&IF((IF(INT(RIGHT(P19,7)/100000)>19,INT(RIGHT(P19,7)/1000000),IF(INT(RIGHT(P19,7)/100000)>=10,INT(RIGHT(P19,7)/100000),0))+IF(INT(RIGHT(P19,7)/100000)>19,INT(RIGHT(P19,6)/100000),IF(INT(RIGHT(P19,7)/100000)>10,0,INT(RIGHT(P19,6)/100000))))>0,LOOKUP(IF(INT(RIGHT(P19,7)/100000)>19,INT(RIGHT(P19,6)/100000),IF(INT(RIGHT(P19,7)/100000)>10,0,INT(RIGHT(P19,6)/100000))),{0,1,2,3,4,5,6,7,8,9,10,11,12,13,14,15,16,17,18,19},{""," ONE "," TWO "," THREE "," FOUR "," FIVE "," SIX "," SEVEN "," EIGHT "," NINE "," TEN "," ELEVEN "," TWELVE "," THIRTEEN "," FOURTEEN "," FIFTEEN "," SIXTEEN"," SEVENTEEN"," EIGHTEEN "," NINETEEN "})&" Lac. "," ")&LOOKUP(IF(INT(RIGHT(P19,5)/1000)>19,INT(RIGHT(P19,5)/10000),IF(INT(RIGHT(P19,5)/1000)>=10,INT(RIGHT(P19,5)/1000),0)),{0,1,2,3,4,5,6,7,8,9,10,11,12,13,14,15,16,17,18,19},{""," TEN "," TWENTY "," THIRTY "," FOURTY "," FIFTY "," SIXTY "," SEVENTY "," EIGHTY "," NINETY "," TEN "," ELEVEN "," TWELVE "," THIRTEEN "," FOURTEEN "," FIFTEEN "," SIXTEEN"," SEVENTEEN"," EIGHTEEN "," NINETEEN "})&IF((IF(INT(RIGHT(P19,5)/1000)>19,INT(RIGHT(P19,4)/1000),IF(INT(RIGHT(P19,5)/1000)>10,0,INT(RIGHT(P19,4)/1000)))+IF(INT(RIGHT(P19,5)/1000)>19,INT(RIGHT(P19,5)/10000),IF(INT(RIGHT(P19,5)/1000)>=10,INT(RIGHT(P19,5)/1000),0)))>0,LOOKUP(IF(INT(RIGHT(P19,5)/1000)>19,INT(RIGHT(P19,4)/1000),IF(INT(RIGHT(P19,5)/1000)>10,0,INT(RIGHT(P19,4)/1000))),{0,1,2,3,4,5,6,7,8,9,10,11,12,13,14,15,16,17,18,19},{""," ONE "," TWO "," THREE "," FOUR "," FIVE "," SIX "," SEVEN "," EIGHT "," NINE "," TEN "," ELEVEN "," TWELVE "," THIRTEEN "," FOURTEEN "," FIFTEEN "," SIXTEEN"," SEVENTEEN"," EIGHTEEN "," NINETEEN "})&" THOUSAND "," ")&IF((INT((RIGHT(P19,3))/100))>0,LOOKUP(INT((RIGHT(P19,3))/100),{0,1,2,3,4,5,6,7,8,9,10,11,12,13,14,15,16,17,18,19},{""," ONE "," TWO "," THREE "," FOUR "," FIVE "," SIX "," SEVEN "," EIGHT "," NINE "," TEN "," ELEVEN "," TWELVE "," THIRTEEN "," FOURTEEN "," FIFTEEN "," SIXTEEN"," SEVENTEEN"," EIGHTEEN "," NINETEEN "})&" HUNDRED "," ")&LOOKUP(IF(INT(RIGHT(P19,2))>19,INT(RIGHT(P19,2)/10),IF(INT(RIGHT(P19,2))>=10,INT(RIGHT(P19,2)),0)),{0,1,2,3,4,5,6,7,8,9,10,11,12,13,14,15,16,17,18,19},{""," TEN "," TWENTY "," THIRTY "," FOURTY "," FIFTY "," SIXTY "," SEVENTY "," EIGHTY "," NINETY "," TEN "," ELEVEN "," TWELVE "," THIRTEEN "," FOURTEEN "," FIFTEEN "," SIXTEEN"," SEVENTEEN"," EIGHTEEN "," NINETEEN "})&LOOKUP(IF(INT(RIGHT(P19,2))<10,INT(RIGHT(P19,1)),IF(INT(RIGHT(P19,2))<20,0,INT(RIGHT(P19,1)))),{0,1,2,3,4,5,6,7,8,9,10,11,12,13,14,15,16,17,18,19},{""," ONE "," TWO "," THREE "," FOUR "," FIVE "," SIX "," SEVEN "," EIGHT "," NINE "," TEN "," ELEVEN "," TWELVE "," THIRTEEN "," FOURTEEN "," FIFTEEN "," SIXTEEN"," SEVENTEEN"," EIGHTEEN "," NINETEEN "})&" Only Deposite In GPF)")) -> ( Rs. SIXTEEN THOUSAND SEVEN HUNDRED SIXTY TWO Only Deposite In GPF)
B22: S.R. | I22: Date : | O22: SEAL AND SIGN OF DDO
B23: For Copying And Necessary Action
A24: 1 | B24: Treasury Officer / Deputy treasury Officer
A25: 2 | B25: Related Employee Sh./Smt./Mis. | G25: =IF(AND(F4=""),"",CONCATENATE(J3,","," ",Q3)) -> HEERA LAL JAT, Sr. Teacher
A26: 3 | B26: File Register
O27: SEAL AND SIGN OF DDO

Sheet Unlock
A1: DA (17%) Drawn Statement | X1: =IF(ISNA(VLOOKUP($F$4,Master!A$8:N$127,4,FALSE)),"",VLOOKUP($F$4,Master!A$8:AH$127,4,FALSE)) -> 8 | Y1: =IF(ISNA(VLOOKUP($F$4,Master!A$8:N$127,6,FALSE)),"",VLOOKUP($F$4,Master!A$8:AH$127,6,FALSE)) -> NPS | Z1: NPS | AA1: GPF | AB1: =IF(ISNA(VLOOKUP($F$4,Master!A$8:N$127,7,FALSE)),"",VLOOKUP($F$4,Master!A$8:AH$127,7,FALSE)) -> 20
A2: =IF(AND(Master!C3=""),"",CONCATENATE("Office Of ",Master!C3)) -> Office Of Government Senior Secondry School Inderwara , Pali | Y2: =IF(ISNA(VLOOKUP($F$4,Master!A$8:N$127,8,FALSE)),"",VLOOKUP($F$4,Master!A$8:AH$127,8,FALSE)) -> 0 | Z2: YES
E3: Name of Employee :- | J3: =IF(ISNA(VLOOKUP($F$4,Master!A$8:N$127,2,FALSE)),"",VLOOKUP($F$4,Master!A$8:AH$127,2,FALSE)) -> BHAGWAN SINGH | O3: POST:- | Q3: =IF(ISNA(VLOOKUP($F$4,Master!A$8:N$127,3,FALSE)),"",VLOOKUP($F$4,Master!A$8:AH$127,3,FALSE)) -> LECTURER
E4: Sr. No. - | F4: 3
A5: Serial No. | B5: Month & Year | C5: Pay Due | G5: Pay Drawn | K5: Pay Difference | O5: Deducation | R5: Total of Dedu ction Col. 15 to 17 | S5: To be paid deducting Col. 14 form 18 | T5: Treasury Bill@ Voucher No.& Date
C6: Basic | D6: Dearness Allowance | E6: H.R.A. | F6: Total Col. 3 to 5 | G6: Basic | H6: Dearness Allowance | I6: H.R.A. | J6: Total Col. 7 to 9 | K6: Basic Pay | L6: Dearness Allowance | M6: H.R.A. | N6: Total Col. 11 to 13 | O6: NPS/GPF | Q6: Income Tax / TDS
O7: NPS | P7: GPF
A8: 1 | B8: 2 | C8: 3 | D8: 4 | E8: 5 | F8: 6 | G8: 7 | H8: 8 | I8: 9 | J8: 10 | K8: 11 | L8: 12 | M8: 13 | N8: 14 | O8: 15 | P8: 16 | Q8: 17 | R8: 18 | S8: 19 | T8: 20
A9: 1 | B9: 2019-07-01 | C9: =IF(ISNA(VLOOKUP($F$4,Master!A$8:N$127,5,FALSE)),"",VLOOKUP($F$4,Master!A$8:AH$127,5,FALSE)) -> 71300 | D9: =IF(AND(C9=""),"",IF(AND($F$4=""),"",ROUND(C9*Master!C$5%,0))) -> 12121 | E9: =IF(AND(C9=""),"",IF(AND($F$4=""),"",ROUND(C9*Master!H$5%,0))) -> 5704 | F9: =IF(AND(C9=""),"",SUM(C9:E9)) -> 89125 | G9: =IF(ISNA(VLOOKUP($F$4,Master!A$8:N$127,5,FALSE)),"",VLOOKUP($F$4,Master!A$8:AH$127,5,FALSE)) -> 71300 | H9: =IF(AND(G9=""),"",IF(AND($F$4=""),"",ROUND(G9*Master!C$4%,0))) -> 8556 | I9: =IF(AND(G9=""),"",IF(AND($F$4=""),"",ROUND(G9*Master!H$4%,0))) -> 5704 | J9: =IF(AND(C9=""),"",SUM(G9:I9)) -> 85560 | K9: =IF(AND(C9=""),"",IF(AND(G9=""),"",C9-G9)) -> 0 | L9: 3565 | M9: 0 | N9: 3565 | O9: =IF(AND(C9=""),"",IF(AND(Y$1=Z$1),ROUND((N9)*10%,0),"0")) -> 357 | P9: =IF(AND(C9=""),"",IF(AND(Y$1=AA$1),N9-Q9,"0")) -> 0 | Q9: =IF(AND($F$4=""),"",IF(AND(N9=""),"",ROUND(N9*AB$1%,0))) -> 713 | R9: =IF(AND(F$4=""),"",IF(AND(C9=""),"",IF(AND(O9=""),"",IF(AND(P9=""),"",O9+P9+Q9)))) -> 1070 | S9: =IF(AND(N9=""),"",IF(AND(R9=""),"",N9-R9)) -> 2495 | Y9: 2019-07-01
A10: 2 | B10: =IF(AND($F$4=""),"",IF(AND(Arrear!X$1<2),"",Y10)) -> 2019-08-01 | C10: =IF(AND($F$4=""),"",IF(AND(Arrear!X$1<2),"",Arrear!C9)) -> 49300 | D10: =IF(AND(C10=""),"",IF(AND($F$4=""),"",ROUND(C10*Master!C$5%,0))) -> 8381 | E10: =IF(AND(C10=""),"",IF(AND($F$4=""),"",ROUND(C10*Master!H$5%,0))) -> 3944 | F10: 61625 | G10: =IF(AND($F$4=""),"",IF(AND(Arrear!X$1<2),"",Arrear!C10)) -> 49300 | H10: =IF(AND(G10=""),"",IF(AND($F$4=""),"",ROUND(G10*Master!C$4%,0))) -> 5916 | I10: =IF(AND(G10=""),"",IF(AND($F$4=""),"",ROUND(G10*Master!H$4%,0))) -> 3944 | J10: 59160 | K10: 0 | L10: 2465 | M10: 0 | N10: 2465 | O10: =IF(AND(C10=""),"",IF(AND(Y$1=Z$1),ROUND((N10)*10%,0),"0")) -> 247 | P10: =IF(AND(C10=""),"",IF(AND(Y$1=AA$1),N10-Q10,"0")) -> 0 | Q10: =IF(AND($F$4=""),"",IF(AND(N10=""),"",ROUND(N10*AB$1%,0))) -> 493 | R10: =IF(AND(F$4=""),"",IF(AND(C10=""),"",IF(AND(O10=""),"",IF(AND(P10=""),"",O10+P10+Q10)))) -> 740 | S10: =IF(AND(N10=""),"",IF(AND(R10=""),"",N10-R10)) -> 1725 | Y10: 2019-08-01
A11: 3 | B11: =IF(AND($F$4=""),"",IF(AND(Arrear!X$1<3),"",Y11)) -> 2019-09-01 | C11: =IF(AND($F$4=""),"",IF(AND(Arrear!X$1<3),"",Arrear!C10)) -> 49300 | D11: =IF(AND(C11=""),"",IF(AND($F$4=""),"",ROUND(C11*Master!C$5%,0))) -> 8381 | E11: =IF(AND(C11=""),"",IF(AND($F$4=""),"",ROUND(C11*Master!H$5%,0))) -> 3944 | F11: 61625 | G11: =IF(AND($F$4=""),"",IF(AND(Arrear!X$1<3),"",Arrear!C11)) -> 49300 | H11: =IF(AND(G11=""),"",IF(AND($F$4=""),"",ROUND(G11*Master!C$4%,0))) -> 5916 | I11: =IF(AND(G11=""),"",IF(AND($F$4=""),"",ROUND(G11*Master!H$4%,0))) -> 3944 | J11: 59160 | K11: 0 | L11: 2465 | M11: 0 | N11: 2465 | O11: 247 | P11: 0 | Q11: 493 | R11: 740 | S11: 1725 | Y11: 2019-09-01
A12: 4 | B12: =IF(AND($F$4=""),"",IF(AND(Arrear!X$1<4),"",Y12)) -> 2019-10-01 | C12: =IF(AND($F$4=""),"",IF(AND(Arrear!X$1<4),"",Arrear!C11)) -> 49300 | D12: =IF(AND(C12=""),"",IF(AND($F$4=""),"",ROUND(C12*Master!C$5%,0))) -> 8381 | E12: =IF(AND(C12=""),"",IF(AND($F$4=""),"",ROUND(C12*Master!H$5%,0))) -> 3944 | F12: 61625 | G12: =IF(AND($F$4=""),"",IF(AND(Arrear!X$1<4),"",Arrear!C12)) -> 49300 | H12: =IF(AND(G12=""),"",IF(AND($F$4=""),"",ROUND(G12*Master!C$4%,0))) -> 5916 | I12: =IF(AND(G12=""),"",IF(AND($F$4=""),"",ROUND(G12*Master!H$4%,0))) -> 3944 | J12: 59160 | K12: 0 | L12: 2465 | M12: 0 | N12: 2465 | O12: 247 | P12: 0 | Q12: 493 | R12: 740 | S12: 1725 | Y12: 2019-10-01
A13: 5 | B13: =IF(AND($F$4=""),"",IF(AND(Arrear!X$1<5),"",Y13)) -> 2019-11-01 | C13: =IF(AND($F$4=""),"",IF(AND(Arrear!X$1<5),"",Arrear!C12)) -> 49300 | D13: =IF(AND(C13=""),"",IF(AND($F$4=""),"",ROUND(C13*Master!C$5%,0))) -> 8381 | E13: =IF(AND(C13=""),"",IF(AND($F$4=""),"",ROUND(C13*Master!H$5%,0))) -> 3944 | F13: 61625 | G13: =IF(AND($F$4=""),"",IF(AND(Arrear!X$1<5),"",Arrear!C13)) -> 49300 | H13: =IF(AND(G13=""),"",IF(AND($F$4=""),"",ROUND(G13*Master!C$4%,0))) -> 5916 | I13: =IF(AND(G13=""),"",IF(AND($F$4=""),"",ROUND(G13*Master!H$4%,0))) -> 3944 | J13: 59160 | K13: 0 | L13: 2465 | M13: 0 | N13: 2465 | O13: 247 | P13: 0 | Q13: 493 | R13: 740 | S13: 1725 | Y13: 2019-11-01
A14: 6 | B14: =IF(AND($F$4=""),"",IF(AND(Arrear!X$1<6),"",Y14)) -> 2019-12-01 | C14: =IF(AND($F$4=""),"",IF(AND(Arrear!X$1<6),"",Arrear!C13)) -> 49300 | D14: =IF(AND(C14=""),"",IF(AND($F$4=""),"",ROUND(C14*Master!C$5%,0))) -> 8381 | E14: =IF(AND(C14=""),"",IF(AND($F$4=""),"",ROUND(C14*Master!H$5%,0))) -> 3944 | F14: 61625 | G14: =IF(AND($F$4=""),"",IF(AND(Arrear!X$1<6),"",Arrear!C14)) -> 49300 | H14: =IF(AND(G14=""),"",IF(AND($F$4=""),"",ROUND(G14*Master!C$4%,0))) -> 5916 | I14: =IF(AND(G14=""),"",IF(AND($F$4=""),"",ROUND(G14*Master!H$4%,0))) -> 3944 | J14: 59160 | K14: 0 | L14: 2465 | M14: 0 | N14: 2465 | O14: 247 | P14: 0 | Q14: 493 | R14: 740 | S14: 1725 | Y14: 2019-12-01
A15: 7 | B15: =IF(AND($F$4=""),"",IF(AND(Arrear!X$1<7),"",Y15)) -> 2020-01-01 | C15: =IF(AND($F$4=""),"",IF(AND(Arrear!X$1<7),"",Arrear!C14)) -> 49300 | D15: =IF(AND(C15=""),"",IF(AND($F$4=""),"",ROUND(C15*Master!C$5%,0))) -> 8381 | E15: =IF(AND(C15=""),"",IF(AND($F$4=""),"",ROUND(C15*Master!H$5%,0))) -> 3944 | F15: 61625 | G15: =IF(AND($F$4=""),"",IF(AND(Arrear!X$1<7),"",Arrear!C15)) -> 49300 | H15: =IF(AND(G15=""),"",IF(AND($F$4=""),"",ROUND(G15*Master!C$4%,0))) -> 5916 | I15: =IF(AND(G15=""),"",IF(AND($F$4=""),"",ROUND(G15*Master!H$4%,0))) -> 3944 | J15: 59160 | K15: 0 | L15: 2465 | M15: 0 | N15: 2465 | O15: 247 | P15: 0 | Q15: 493 | R15: 740 | S15: 1725 | Y15: 2020-01-01
A16: 8 | B16: =IF(AND($F$4=""),"",IF(AND(Arrear!X$1<8),"",Y16)) -> 2020-02-01 | C16: =IF(AND($F$4=""),"",IF(AND(Arrear!X$1<8),"",Arrear!C15)) -> 49300 | D16: =IF(AND(C16=""),"",IF(AND($F$4=""),"",ROUND(C16*Master!C$5%,0))) -> 8381 | E16: =IF(AND(C16=""),"",IF(AND($F$4=""),"",ROUND(C16*Master!H$5%,0))) -> 3944 | F16: 61625 | G16: =IF(AND($F$4=""),"",IF(AND(Arrear!X$1<8),"",Arrear!C16)) -> 49300 | H16: =IF(AND(G16=""),"",IF(AND($F$4=""),"",ROUND(G16*Master!C$4%,0))) -> 5916 | I16: =IF(AND(G16=""),"",IF(AND($F$4=""),"",ROUND(G16*Master!H$4%,0))) -> 3944 | J16: 59160 | K16: 0 | L16: 2465 | M16: 0 | N16: 2465 | O16: 247 | P16: 0 | Q16: 493 | R16: 740 | S16: 1725 | Y16: 2020-02-01
A17: 9 | B17: =IF(AND($F$4=""),"",IF(AND(Arrear!X$1<9),"",Y17)) ->  | C17: =IF(AND($F$4=""),"",IF(AND(Arrear!X$1<9),"",Arrear!C16)) ->  | D17: =IF(AND(C17=""),"",IF(AND($F$4=""),"",ROUND(C17*Master!C$5%,0))) ->  | E17: =IF(AND(C17=""),"",IF(AND($F$4=""),"",ROUND(C17*Master!H$5%,0))) ->  | G17: =IF(AND($F$4=""),"",IF(AND(Arrear!X$1<9),"",Arrear!C17)) ->  | H17: =IF(AND(G17=""),"",IF(AND($F$4=""),"",ROUND(G17*Master!C$4%,0))) ->  | I17: =IF(AND(G17=""),"",IF(AND($F$4=""),"",ROUND(G17*Master!H$4%,0))) ->  | Y17: 2020-03-01
A18: 12 | B18: Surrender Arrear | C18: =IF(AND($F$4=""),"",IF(AND(Y$2=Z$2),VLOOKUP($F$4,Master!A$8:AH$127,5,FALSE)/2,"")) ->  | D18: =IF(AND(C18=""),"",IF(AND($F$4=""),"",ROUND(C18*Master!C$5%,0))) ->  | E18: =IF(AND(C18=""),"",IF(AND($F$4=""),"",ROUND(C18*Master!H$5%,0))) ->  | G18: =IF(AND($F$4=""),"",IF(AND(Y$2=Z$2),VLOOKUP($F$4,Master!A$8:AH$127,5,FALSE)/2,"")) ->  | H18: =IF(AND(G18=""),"",IF(AND($F$4=""),"",ROUND(G18*Master!C$4%,0))) ->  | I18: =IF(AND(G18=""),"",IF(AND($F$4=""),"",ROUND(G18*Master!H$4%,0))) ->  | Y18: 2020-06-01
A19: TOTAL | C19: =IF(AND($F$4=""),"",SUM(C9:C18)) -> 416400 | D19: 70788 | E19: 33312 | F19: 520500 | G19: 416400 | H19: 49968 | I19: 33312 | J19: 499680 | K19: 0 | L19: 20820 | M19: 0 | N19: 20820 | O19: 2086 | P19: 0 | Q19: 4164 | R19: 6250 | S19: 14570
E20: Cash Amount in Words : | J20: ZERO ONLY
B22: S.R. | I22: Date : | O22: SEAL AND SIGN OF DDO
B23: For Copying And Necessary Action
A24: 1 | B24: Treasury Officer / Deputy treasury Officer
A25: 2 | B25: Related Employee Sh./Smt./Mis. | G25: =IF(AND(F4=""),"",CONCATENATE(J3,","," ",Q3)) -> BHAGWAN SINGH, LECTURER
A26: 3 | B26: File Register
O27: SEAL AND SIGN OF DDO
